bitfinex-derivatives/quotes_ETHF0:USTF0_20250911
["timestamp","ask_amount","ask_price","bid_price","bid_amount"]
[1757561728674,0.52,4388.7,4388.6,37.6396]
[1757561729677,0.52,4388.7,4388.6,37.4086]
[1757561729877,0.52,4388.7,4388.6,37.6396]
[1757561732584,0.52,4388.7,4388.6,37.8501]
[1757561733688,0.1197,4389.0,4388.9,0.6256]
[1757561734083,0.3176,4389.4,4388.9,0.6256]
[1757561734290,0.5181,4389.5,4389.4,0.4151]
[1757561734592,0.5181,4389.5,4389.4,0.6253]
[1757561734882,0.6397,4389.5,4389.4,0.8563]
[1757561735087,0.6397,4389.5,4389.4,0.6461]
[1757561736389,0.1197,4390.0,4389.4,0.8563]
[1757561736589,0.3176,4389.9,4389.8,0.6253]
[1757561736794,0.3176,4389.9,4389.8,0.8563]
[1757561737189,0.3176,4389.9,4389.8,38.0563]
[1757561738897,0.1197,4391.0,4389.8,38.0563]
[1757561739086,0.3176,4390.4,4389.8,38.0563]
[1757561739691,0.1197,4391.0,4389.8,38.0563]
[1757561739887,0.3176,4390.4,4389.8,37.8461]
[1757561740096,0.716,4390.4,4390.3,0.4151]
[1757561740396,0.716,4390.4,4390.3,0.8563]
[1757561740797,0.3176,4390.4,4390.3,0.8563]
[1757561741290,0.8357,4391.0,4390.9,0.2086]
[1757561742890,0.8357,4391.0,4390.9,0.6253]
[1757561743094,0.4373,4391.0,4390.9,1.80241839]
[1757561743289,0.1197,4391.5,4391.0,0.2102]
[1757561743490,0.8357,4391.5,4391.4,0.4151]
[1757561745307,0.8357,4391.5,4391.4,0.6253]
[1757561745507,0.8357,4391.5,4391.4,0.4151]
[1757561746306,0.8357,4391.5,4391.4,1.40844905]
[1757561747507,0.4373,4391.5,4391.4,1.61864905]
[1757561747708,0.3176,4391.9,4391.5,0.2102]
[1757561747913,0.3176,4391.9,4391.8,1.40844905]
[1757561748096,0.3176,4391.9,4391.8,1.84964905]
[1757561748296,0.3176,4391.9,4391.8,39.04964905]
[1757561752407,0.3176,4391.9,4391.8,38.83944905]
[1757561755705,0.3176,4391.9,4391.8,39.04964905]
[1757561757202,0.3176,4391.9,4391.8,37.6151]
[1757561757407,0.3176,4391.9,4391.8,37.8461]
[1757561757605,0.3176,4391.9,4391.8,38.60844905]
[1757561757909,0.3176,4391.9,4391.8,38.83944905]
[1757561758516,0.3176,4391.9,4391.8,37.8461]
[1757561758714,0.3176,4391.9,4391.8,38.83944905]
[1757561758902,0.3176,4391.9,4391.8,39.04954905]
[1757561759512,0.3176,4391.9,4391.8,38.83944905]
[1757561759815,0.3176,4391.9,4391.8,39.04954905]
[1757561760209,0.3176,4391.9,4391.8,38.83944905]
[1757561763315,0.3176,4391.9,4391.8,39.04954905]
[1757561763513,0.3035,4392.4,4391.9,0.2101]
[1757561763715,0.5478,4394.0,4393.9,0.2128]
[1757561763915,0.8513,4394.0,4393.9,0.2128]
[1757561764219,0.8513,4394.0,4393.9,0.427]
[1757561764420,0.8513,4394.0,4393.9,0.8681]
[1757561764816,0.8513,4394.0,4393.9,0.658]
[1757561765522,0.8513,4394.0,4393.9,0.4438]
[1757561765910,0.8513,4394.0,4393.9,0.658]
[1757561766114,0.4318,4394.0,4393.9,0.8681]
[1757561766311,0.1283,4394.5,4393.9,0.658]
[1757561766515,0.515,4394.4,4394.3,1.42034905]
[1757561766819,0.3035,4394.4,4394.3,1.86144905]
[1757561767022,0.515,4394.4,4394.3,1.86144905]
[1757561767316,0.515,4394.4,4394.3,1.63044905]
[1757561767519,0.515,4394.4,4394.3,1.86144905]
[1757561767718,0.515,4394.4,4394.3,1.65134905]
[1757561768818,0.723,4394.4,4394.3,1.65134905]
[1757561769424,0.1283,4394.0,4393.2,0.99334905]
[1757561769628,0.515,4393.4,4393.3,0.658]
[1757561770729,0.515,4393.4,4393.3,1.86144905]
[1757561771024,0.3035,4393.4,4393.3,1.86144905]
[1757561771822,0.515,4393.4,4393.3,1.65134905]
[1757561772024,0.723,4393.4,4393.3,1.65134905]
[1757561773026,0.3035,4393.9,4393.3,1.65134905]
[1757561773227,0.8513,4394.0,4393.9,0.2128]
[1757561774018,0.8513,4394.0,4393.9,0.6371]
[1757561774225,0.6433,4394.5,4394.4,0.427]
[1757561774426,0.6433,4394.5,4394.4,1.86144905]
[1757561774822,0.6433,4394.5,4394.4,39.06144905]
[1757561776729,0.4318,4394.5,4394.4,39.06144905]
[1757561777729,0.4318,4394.5,4394.4,38.85134905]
[1757561778130,0.4318,4394.5,4394.4,39.06144905]
[1757561778633,0.4318,4394.5,4394.4,38.85134905]
[1757561778819,0.4318,4394.5,4394.4,38.63714905]
[1757561779020,0.8513,4394.5,4394.4,0.23]
[1757561779217,0.3035,4394.4,4394.3,0.173]
[1757561779422,0.723,4394.4,4394.3,0.173]
[1757561779725,0.723,4394.4,4394.3,1.16634905]
[1757561779924,0.723,4394.4,4394.3,1.37914905]
[1757561780124,0.723,4394.4,4394.3,1.43614905]
[1757561780625,0.3035,4394.4,4394.3,1.65034905]
[1757561780931,0.3035,4394.4,4394.3,1.86044905]
[1757561781731,0.515,4394.4,4394.3,1.65034905]
[1757561782233,0.3035,4394.4,4394.3,1.86044905]
[1757561783934,0.515,4394.4,4394.3,1.86044905]
[1757561784632,0.3035,4394.4,4394.3,1.86044905]
[1757561786242,0.3035,4394.4,4394.3,1.63044905]
[1757561786441,0.3035,4394.4,4394.3,1.86044905]
[1757561787225,0.515,4394.4,4394.3,1.65034905]
[1757561787538,0.7155,4394.4,4394.3,1.65034905]
[1757561788234,0.2981,4394.3,4394.1,37.2]
[1757561788435,0.1283,4394.5,4394.1,37.2]
[1757561788436,0.7059,4394.2,4394.1,37.2]
[1757561788736,0.7059,4394.2,4394.1,37.43]
[1757561789929,0.7059,4394.2,4394.1,37.6395]
[1757561791935,0.5054,4394.2,4394.1,37.6395]
[1757561792239,0.2981,4394.2,4394.1,37.6395]
[1757561793045,0.1283,4394.5,4394.4,0.2055]
[1757561793046,0.8342,4394.5,4394.4,0.2055]
[1757561793247,0.8342,4394.5,4394.4,0.4355]
[1757561795143,0.8342,4394.5,4394.4,1.42884905]
[1757561796444,0.8342,4394.5,4394.4,1.63274905]
[1757561796944,0.8342,4394.5,4394.4,0.6394]
[1757561797146,0.8342,4394.5,4394.4,1.63274905]
[1757561798033,0.8342,4394.5,4394.4,1.19884905]
[1757561798239,0.8342,4394.5,4394.1,38.19334905]
[1757561798441,0.8342,4394.5,4393.7,0.2095]
[1757561798442,0.4078,4394.3,4394.0,0.99334905]
[1757561798646,0.7059,4394.2,4394.1,0.23]
[1757561800950,0.7059,4394.2,4394.1,0.4355]
[1757561803346,0.7059,4394.2,4394.1,0.6394]
[1757561805048,0.7059,4394.2,4394.1,0.8489]
[1757561805549,0.2981,4394.2,4394.1,0.8489]
[1757561806046,0.1283,4394.5,4394.1,0.8489]
[1757561806346,0.5054,4394.4,4394.3,0.4094]
[1757561806548,0.5054,4394.4,4394.3,0.6189]
[1757561807451,0.5054,4394.4,4394.3,1.61224905]
[1757561808342,0.5054,4394.4,4394.3,1.79367711]
[1757561808645,0.7059,4394.4,4393.7,0.2095]
[1757561808847,0.8352,4394.0,4393.9,0.4094]
[1757561809651,0.8352,4394.0,4393.7,0.2095]
[1757561809652,0.8352,4393.5,4393.4,2.85554175]
[1757561809850,0.4078,4392.7,4392.6,2.85554175]
[1757561810042,0.7059,4392.7,4392.6,3.08554175]
[1757561810240,0.7059,4392.7,4392.6,1.81417711]
[1757561810643,0.1293,4393.0,4392.6,2.02367711]
[1757561810848,0.2981,4392.9,4392.8,0.6189]
[1757561811249,0.5054,4392.9,4392.8,0.6189]
[1757561812353,0.5054,4392.9,4392.8,1.58417711]
[1757561813154,0.7059,4392.9,4392.8,1.58417711]
[1757561813450,0.8352,4392.5,4392.4,1.38027711]
[1757561813651,0.8352,4392.5,4392.4,1.61027711]
[1757561814041,0.8352,4392.5,4392.4,1.38027711]
[1757561814242,0.8352,4392.5,4391.9,0.2095]
[1757561814243,0.8352,4392.0,4391.9,0.2055]
[1757561814445,0.8352,4392.0,4391.9,0.6394]
[1757561814644,0.6347,4392.0,4391.9,38.0489]
[1757561816453,0.6347,4392.0,4391.2,2.85554175]
[1757561816454,0.2005,4391.8,4391.2,2.85554175]
[1757561816653,0.2005,4391.8,4391.7,0.4094]
[1757561816654,0.7059,4391.8,4391.7,0.4094]
[1757561816849,0.1293,4392.0,4391.7,0.8489]
[1757561817045,0.1293,4392.5,4391.7,0.8489]
[1757561817046,0.0181,4391.8,4391.7,0.23]
[1757561817247,0.0181,4391.8,4391.7,1.63245711]
[1757561817949,0.3136,4392.0,4391.7,1.40477711]
[1757561818454,0.2131,4391.9,4391.7,1.17477711]
[1757561818753,0.7274,4391.8,4391.7,1.17477711]
[1757561818951,0.7274,4391.8,4391.7,1.40477711]
[1757561821450,0.2131,4391.3,4391.2,37.2]
[1757561821652,0.5267,4391.3,4391.2,38.60477711]
[1757561824659,0.5267,4391.3,4391.2,38.60577711]
[1757561825253,0.5267,4391.3,4391.2,38.37477711]
[1757561825457,0.5267,4391.3,4391.2,37.431]
[1757561825652,0.5267,4391.3,4391.2,38.60577711]
[1757561825853,0.5267,4391.3,4391.2,1.40577711]
[1757561826159,0.7274,4391.3,4391.2,1.40577711]
[1757561827262,0.5267,4391.3,4391.2,1.40577711]
[1757561828165,0.3136,4391.3,4391.2,1.40577711]
[1757561828456,0.3136,4391.3,4391.2,1.17477711]
[1757561828662,0.3136,4391.3,4391.2,1.40477711]
[1757561829060,0.0181,4391.7,4391.2,1.40477711]
[1757561829250,0.0181,4391.7,4391.6,1.17477711]
[1757561829451,0.3136,4391.7,4391.6,1.40477711]
[1757561829761,0.1206,4392.0,4391.6,1.40477711]
[1757561830063,0.1206,4392.0,4391.6,38.60477711]
[1757561830459,0.3136,4391.9,4391.6,38.60477711]
[1757561831360,0.1387,4392.0,4391.6,38.60477711]
[1757561831864,0.3136,4391.9,4391.6,38.60477711]
[1757561832266,0.1387,4392.0,4391.6,38.60477711]
[1757561832663,0.3136,4391.9,4391.6,38.60477711]
[1757561834165,0.1387,4392.0,4391.6,38.60477711]
[1757561834469,0.3136,4391.9,4391.6,38.60477711]
[1757561834666,0.1387,4392.0,4391.6,38.60477711]
[1757561835470,0.7274,4391.7,4391.6,1.17477711]
[1757561835663,0.7274,4391.7,4391.6,1.40477711]
[1757561836565,0.5267,4391.7,4391.6,1.40477711]
[1757561838371,0.7274,4391.7,4391.6,1.17477711]
[1757561838572,0.7274,4391.7,4391.6,1.40477711]
[1757561839275,0.7274,4391.7,4391.6,1.17477711]
[1757561839568,0.7274,4391.7,4391.6,1.40477711]
[1757561839970,0.4138,4391.7,4391.0,37.2]
[1757561840173,0.3337,4391.5,4391.1,0.23]
[1757561840468,0.5267,4391.4,4391.1,0.23]
[1757561840671,0.1206,4391.0,4390.8,2.85554175]
[1757561840877,0.6473,4391.0,4390.9,0.23]
[1757561841171,0.1206,4391.5,4390.9,37.43]
[1757561841375,0.4342,4391.5,4390.9,38.83250711]
[1757561841576,0.4342,4391.5,4391.4,1.17477711]
[1757561841765,0.4342,4391.5,4391.4,1.40477711]
[1757561842662,0.1206,4392.0,4391.4,1.40477711]
[1757561842859,0.3136,4391.9,4391.4,0.23]
[1757561843064,0.3136,4392.4,4391.8,1.17477711]
[1757561843261,0.3136,4392.4,4392.3,1.17477711]
[1757561843466,0.5267,4392.4,4392.3,1.40477711]
[1757561843874,0.7274,4392.4,4392.3,1.40477711]
[1757561844379,0.1206,4392.0,4391.9,1.17477711]
[1757561844568,0.848,4392.0,4391.9,1.40477711]
[1757561844768,0.848,4392.0,4391.9,38.60477711]
[1757561845277,0.6473,4392.0,4391.9,38.60477711]
[1757561848282,0.4342,4392.0,4391.9,38.60477711]
[1757561848581,0.3226,4392.4,4391.9,38.60477711]
[1757561848781,0.4519,4392.5,4392.3,1.17477711]
[1757561849079,0.4519,4392.5,4392.4,0.23]
[1757561849476,0.2384637,4392.5,4392.4,0.8495]
[1757561851084,0.5736637,4392.5,4392.4,0.636]
[1757561851275,0.5736637,4392.5,4392.4,0.8495]
[1757561851778,0.2384637,4392.5,4392.4,0.8495]
[1757561853181,0.3407,4392.7,4392.4,0.636]
[1757561853374,0.3407,4392.7,4392.6,0.6243]
[1757561853568,0.3226,4392.7,4392.6,0.6243]
[1757561853774,0.5329,4393.5,4393.4,0.1991]
[1757561853977,0.8555,4393.5,4393.4,0.1991]
[1757561854181,0.8555,4393.5,4393.4,0.4108]
[1757561854479,0.8555,4393.5,4393.4,0.6243]
[1757561854679,0.6517,4393.5,4393.4,0.6243]
[1757561854871,0.3226,4393.5,4393.4,0.6243]
[1757561855071,0.018,4393.7,4393.4,0.6243]
[1757561855271,0.3406,4393.7,4393.6,0.6243]
[1757561855482,0.3226,4393.7,4393.6,0.8543]
[1757561855675,0.3226,4393.9,4393.8,0.6243]
[1757561855882,0.3226,4393.9,4393.8,1.79907711]
[1757561856276,0.5311,4393.9,4393.8,1.79907711]
[1757561858279,0.5311,4393.9,4393.8,1.58557711]
[1757561859084,0.5311,4393.9,4393.8,1.79907711]
[1757561860989,0.7349,4393.9,4393.8,1.58557711]
[1757561861189,0.7349,4393.9,4393.8,1.79907711]
[1757561861392,0.5311,4393.9,4393.8,1.79907711]
[1757561862589,0.5311,4393.9,4393.8,1.59997711]
[1757561862795,0.7349,4393.9,4393.6,0.23]
[1757561863085,0.4123,4393.9,4393.6,1.40477711]
[1757561863291,0.7349,4393.8,4393.7,0.1991]
[1757561865089,0.7349,4393.8,4393.6,0.23]
[1757561866093,0.7349,4393.8,4393.7,0.1991]
[1757561867385,0.7349,4393.8,4393.6,0.23]
[1757561867894,0.7349,4393.8,4393.7,0.1991]
[1757561868489,0.7349,4393.8,4393.7,0.4108]
[1757561868697,0.5311,4393.8,4393.7,0.6243]
[1757561868893,0.3226,4393.8,4393.7,0.6243]
[1757561870394,0.3226,4393.8,4393.7,1.61640244]
[1757561871090,0.2085,4394.0,4393.9,0.4108]
[1757561871395,0.4493,4394.0,4393.9,0.8543]
[1757561872690,0.6578,4394.0,4393.9,0.8543]
[1757561874498,0.6578,4394.0,4393.9,0.6408]
[1757561874792,0.8616,4394.0,4393.9,0.6408]
[1757561875798,0.8616,4394.0,4393.9,0.4108]
[1757561876001,0.8616,4394.0,4393.9,0.23]
[1757561876310,0.1267,4394.0,4393.7,0.99210244]
[1757561876497,0.5311,4393.4,4393.3,37.4135]
[1757561876690,0.5311,4393.4,4393.3,38.63560244]
[1757561878602,0.5311,4393.4,4393.3,38.42210244]
[1757561878901,0.5311,4393.4,4393.3,38.63580244]
[1757561879901,0.5311,4393.4,4393.3,38.42210244]
[1757561880793,0.7291,4393.4,4393.3,1.43320244]
[1757561881196,0.7291,4393.4,4393.3,38.63320244]
[1757561882502,0.5311,4393.4,4393.3,38.84690244]
[1757561882690,0.5311,4393.4,4393.3,38.61690244]
[1757561883002,0.5311,4393.4,4393.3,38.84690244]
[1757561883501,0.31771694,4393.4,4393.3,38.84690244]
[1757561883701,0.10433261,4393.4,4393.3,39.02763202]
[1757561885300,0.5305,4394.0,4393.9,0.2111]
[1757561885603,0.018,4394.1,4394.0,0.8463]
[1757561887702,0.6962,4395.4,4395.3,0.2111]
[1757561887902,0.92374,4395.4,4395.3,0.16710248]
[1757561888504,0.92374,4395.4,4395.3,0.16696667]
[1757561888904,0.6962,4395.4,4395.3,0.16696667]
[1757561889102,0.4038,4394.9,4394.8,0.225]
[1757561889407,0.6962,4394.9,4394.8,0.225]
[1757561889704,0.5255192,4394.9,4394.8,0.5397]
[1757561890310,0.5255192,4394.9,4394.8,0.3147]
[1757561893214,0.2331192,4394.9,4394.6,0.3147]
[1757561893413,0.6962,4394.7,4394.6,0.3147]
[1757561893613,0.55603886,4394.7,4394.6,0.3147]
[1757561893817,0.26363886,4394.7,4394.6,0.3147]
[1757561894113,0.26363886,4394.7,4394.6,0.5258]
[1757561895520,0.26363886,4394.7,4394.6,0.3147]
[1757561895715,0.09295279,4394.7,4394.6,0.5258]
[1757561896618,0.09295279,4394.7,4394.6,0.7277]
[1757561898518,0.09295279,4394.7,4394.5,1.11070244]
[1757561898519,4.09295279,4394.7,4394.5,0.1186]
[1757561898716,4.0,4394.6,4394.1,0.3147]
[1757561898912,0.99210244,4394.4,4394.1,0.3147]
[1757561899325,0.99210244,4394.4,4394.0,0.1186]
[1757561899815,0.99210244,4394.4,4394.1,0.3147]
[1757561900021,4.0,4394.3,4394.1,0.3147]
[1757561901323,4.0,4394.2,4393.7,0.3147]
[1757561901518,0.99210244,4394.1,4393.5,0.1186]
[1757561901720,0.99210244,4394.1,4393.6,0.3147]
[1757561902019,0.99210244,4394.1,4393.5,0.4333]
[1757561902822,0.99210244,4394.1,4393.5,0.1186]
[1757561903126,0.99210244,4394.1,4393.6,0.3147]
[1757561903317,0.99210244,4394.1,4393.5,0.3297]
[1757561903517,0.99210244,4394.1,4393.6,0.3147]
[1757561905323,0.99210244,4394.1,4394.0,0.1186]
[1757561905523,0.99210244,4394.1,4394.0,0.4333]
[1757561906123,0.117,4394.8,4394.0,0.4333]
[1757561906420,0.99210244,4394.3,4394.1,0.3147]
[1757561906629,0.99210244,4394.3,4394.0,0.1186]
[1757561907324,0.99210244,4394.3,4394.1,0.3226]
[1757561907520,0.99210244,4394.3,4394.0,0.1186]
[1757561908732,0.99210244,4394.3,4394.1,0.3226]
[1757561909324,0.99210244,4394.3,4394.0,0.1186]
[1757561909923,0.99210244,4394.3,4394.1,0.3226]
[1757561910228,0.99210244,4394.3,4394.0,0.1186]
[1757561911224,0.99210244,4394.3,4394.1,0.3226]
[1757561911427,0.99210244,4394.3,4394.0,0.1186]
[1757561911819,0.99210244,4394.3,4394.1,0.3226]
[1757561912323,0.99210244,4394.3,4394.0,0.1186]
[1757561912528,0.99210244,4394.3,4394.1,0.3226]
[1757561913129,0.99210244,4394.3,4394.0,0.1186]
[1757561913331,0.99210244,4394.3,4394.1,0.3226]
[1757561913524,0.99210244,4394.3,4394.0,0.1186]
[1757561913844,0.99210244,4394.3,4394.1,0.3226]
[1757561914029,0.99210244,4394.3,4394.2,0.3226]
[1757561914423,0.99210244,4394.3,4394.2,0.5257]
[1757561915930,0.99210244,4394.3,4394.2,0.3226]
[1757561920136,0.137,4394.8,4394.6,0.3226]
[1757561920331,0.17906395,4395.7,4395.6,0.3226]
[1757561920628,2.00316792,4395.7,4395.6,0.3226]
[1757561921033,1.82410397,4395.7,4395.6,0.3226]
[1757561924826,1.82410397,4395.7,4395.5,0.1247]
[1757561925031,0.60200153,4395.6,4395.5,0.4473]
[1757561930439,1.77690376,4395.6,4395.5,0.4473]
[1757561932842,1.77690376,4395.6,4395.0,0.1247]
[1757561933048,1.17490223,4395.1,4394.5,0.1247]
[1757561933343,0.7079,4394.9,4394.8,0.4083]
[1757561933551,0.4132,4394.9,4394.8,0.4083]
[1757561935049,0.4132,4394.9,4394.8,0.7309]
[1757561935550,0.7079,4394.9,4394.8,0.3226]
[1757561935742,0.7079,4394.9,4394.8,0.5257]
[1757561935939,0.4132,4394.9,4394.8,0.7309]
[1757561937349,0.2004,4394.9,4394.8,0.7309]
[1757561939952,0.701,4394.9,4394.8,0.3226]
[1757561940261,1.30321135,4394.9,4394.1,0.3131]
[1757561940456,0.701,4394.9,4394.1,0.3131]
[1757561940850,0.6333,4394.8,4394.7,0.204]
[1757561941050,0.9383,4394.8,4394.7,0.5171]
[1757561941355,0.6333,4394.8,4394.7,0.7204]
[1757561941558,0.305,4395.4,4394.8,0.3131]
[1757561941751,1.23553287,4395.3,4395.2,0.7204]
[1757561941945,1.54053287,4395.3,4395.2,0.7204]
[1757561942252,1.54053287,4395.3,4395.2,0.5171]
[1757561942451,1.54053287,4395.3,4395.2,0.3131]
[1757561944555,0.4033,4395.1,4395.0,0.3131]
[1757561944760,1.31053287,4395.1,4395.0,0.3131]
[1757561944960,1.31053287,4395.1,4395.0,0.5171]
[1757561945163,1.31053287,4395.1,4395.0,0.841]
[1757561945364,1.00553287,4395.1,4395.0,0.841]
[1757561947063,0.83223287,4395.1,4395.0,0.841]
[1757561947251,0.23,4395.1,4395.0,0.841]
[1757561950266,0.83343032,4395.1,4395.0,0.841]
[1757561950465,0.23,4395.1,4395.0,0.841]
[1757561950665,0.83342819,4395.1,4395.0,0.841]
[1757561953055,0.23,4395.1,4395.0,0.841]
[1757561955270,0.305,4395.6,4395.1,0.3131]
[1757561955474,0.4033,4395.6,4395.5,0.841]
[1757561955675,1.23576667,4395.6,4395.5,0.841]
[1757561956274,1.54076667,4395.6,4395.5,0.841]
[1757561957774,0.60246667,4395.6,4395.5,0.841]
[1757561958071,2.71561463,4395.6,4395.5,0.3131]
[1757561958276,2.71561463,4395.6,4395.1,0.3131]
[1757561958476,0.2077,4395.2,4395.1,0.7204]
[1757561959476,0.4377,4395.6,4395.5,0.841]
[1757561959675,0.6333,4395.6,4395.5,0.841]
[1757561959876,1.00563292,4395.6,4395.5,0.841]
[1757561960079,1.23563292,4395.6,4395.5,0.841]
[1757561964080,1.54063292,4395.6,4395.5,0.841]
[1757561964277,1.54063292,4395.6,4395.5,0.5171]
[1757561964477,2.71553515,4395.6,4395.5,0.5171]
[1757561965184,2.71553515,4395.6,4395.5,0.3131]
[1757561965577,2.71553515,4395.6,4395.1,0.3131]
[1757561965780,0.4033,4395.2,4395.1,0.5171]
[1757561965981,0.7083,4395.2,4395.1,0.5171]
[1757561966381,0.4033,4395.2,4395.1,0.7204]
[1757561972483,0.6333,4395.2,4395.1,0.7204]
[1757561972683,0.6333,4395.2,4395.0,0.1206]
[1757561972684,1.17490223,4396.0,4395.8,0.2927]
[1757561972885,1.04819245,4395.9,4395.8,0.7009]
[1757561973989,1.25899245,4395.9,4395.8,0.7009]
[1757561974193,1.56399245,4395.9,4395.8,0.7009]
[1757561976289,1.02899245,4395.9,4395.8,0.7009]
[1757561976794,1.04819245,4395.9,4395.8,0.7009]
[1757561982994,1.56399245,4395.9,4395.8,0.7009]
[1757561986997,1.56399245,4395.9,4395.8,0.2927]
[1757561987895,1.56399245,4395.9,4395.8,0.4972]
[1757561991297,1.56399245,4395.9,4395.8,0.7009]
[1757561992301,2.55585987,4395.9,4395.8,0.7009]
[1757561995604,2.55585987,4395.9,4395.8,0.4972]
[1757561995803,2.55585987,4395.9,4395.8,0.2927]
[1757561996604,2.55585987,4395.9,4395.8,0.4972]
[1757561997601,2.55585987,4395.9,4395.8,0.7009]
[1757562000406,2.25085987,4395.9,4395.8,0.7009]
[1757562000706,33.98947022,4396.9,4396.0,0.1239]
[1757562000904,33.98947022,4396.9,4396.1,0.7323]
[1757562000905,0.2141,4396.2,4396.1,0.7323]
[1757562001309,1.04654346,4396.2,4396.1,0.7323]
[1757562001705,0.60244346,4396.2,4396.1,0.7323]
[1757562001909,0.83244346,4396.2,4396.1,0.7323]
[1757562002407,1.57234346,4396.2,4396.1,0.7323]
[1757562002598,2.56421088,4396.2,4396.1,0.7323]
[1757562002798,2.56421088,4396.2,4396.1,0.3191]
[1757562003808,2.56421088,4396.2,4395.6,0.3191]
[1757562004108,1.73176742,4395.7,4395.6,0.5307]
[1757562004310,1.96176742,4395.7,4395.6,0.5307]
[1757562006011,1.96176742,4395.7,4395.6,0.7323]
[1757562008409,1.64856742,4395.7,4395.6,0.7323]
[1757562009112,2.25162229,4395.7,4395.6,0.7323]
[1757562011617,2.56482229,4395.7,4395.6,0.7323]
[1757562012210,2.56482229,4395.7,4395.6,0.5307]
[1757562013912,2.56482229,4395.7,4395.6,0.3191]
[1757562014215,2.56482229,4395.7,4395.1,0.3191]
[1757562014415,2.56482229,4395.7,4395.3,0.4132]
[1757562014416,1.20596742,4395.4,4395.3,0.4132]
[1757562014619,0.4441,4395.4,4395.3,0.7323]
[1757562015326,1.41856742,4395.8,4395.7,0.4132]
[1757562015526,2.56416835,4395.8,4395.7,0.7323]
[1757562016027,2.56416835,4395.8,4395.7,0.5307]
[1757562017822,2.56416835,4395.8,4395.7,0.3191]
[1757562018319,2.56416835,4395.8,4395.7,0.5307]
[1757562019129,2.56416835,4395.8,4395.1,0.3191]
[1757562019317,1.41856742,4395.2,4395.1,0.7323]
[1757562020327,5.95928742,4395.2,4393.9,2.85554175]
[1757562020523,5.95928742,4395.2,4393.5,0.1239]
[1757562020524,0.2141,4393.6,4393.5,0.5371]
[1757562020824,0.5522,4393.9,4393.5,0.76465999]
[1757562021019,0.3222,4394.6,4394.5,0.1239]
[1757562021214,0.4441,4394.8,4394.7,0.4132]
[1757562021421,0.4441,4394.8,4394.7,0.7323]
[1757562021821,0.9938,4394.8,4394.7,0.7323]
[1757562022026,0.6716,4394.8,4394.7,0.7323]
[1757562022827,0.4416,4394.8,4394.7,0.7323]
[1757562023025,0.4575,4394.8,4394.7,0.7323]
[1757562023822,0.2275,4394.8,4394.7,0.7323]
[1757562024022,0.4575,4394.8,4394.7,0.7323]
[1757562024224,0.6716,4394.8,4394.7,0.7323]
[1757562025020,0.4575,4394.8,4394.7,0.7323]
[1757562025422,0.2275,4394.8,4394.7,0.7323]
[1757562025629,0.4575,4394.8,4394.7,0.7323]
[1757562026031,0.6716,4394.8,4394.7,0.7323]
[1757562026330,0.4575,4394.8,4394.7,0.7323]
[1757562026730,2.19826742,4394.8,4394.7,0.7323]
[1757562028832,1.2064,4394.8,4394.7,0.7323]
[1757562030232,2.19826742,4394.8,4394.7,0.7323]
[1757562031231,1.2064,4394.8,4394.7,0.7323]
[1757562032536,0.9764,4394.8,4394.7,0.7323]
[1757562032831,1.2064,4394.8,4394.7,0.7323]
[1757562034134,0.8842,4394.8,4394.7,0.7323]
[1757562034527,1.1897,4394.8,4394.7,0.7323]
[1757562035533,0.8842,4394.8,4394.7,0.7323]
[1757562035928,1.1897,4394.8,4394.7,0.7323]
[1757562037227,0.2275,4394.8,4394.7,0.7323]
[1757562038335,0.6427,4394.8,4394.7,0.7323]
[1757562038638,0.9482,4394.8,4394.7,0.529]
[1757562039126,0.9482,4394.8,4394.7,0.3191]
[1757562039532,0.9482,4394.8,4394.7,0.529]
[1757562040728,1.94006742,4394.8,4394.7,0.529]
[1757562043341,1.94006742,4394.8,4394.1,0.3137]
[1757562043537,0.99186742,4394.3,4394.2,0.2099]
[1757562043738,1.71256742,4394.3,4394.2,0.5236]
[1757562043934,0.4152,4394.3,4394.2,0.7364]
[1757562044130,0.7207,4394.3,4394.2,0.7364]
[1757562044332,0.2037,4394.3,4394.2,0.7364]
[1757562044537,0.23,4394.4,4394.3,0.7364]
[1757562045342,0.4337,4394.4,4394.3,0.7364]
[1757562046137,0.7392,4394.4,4394.3,0.7364]
[1757562046341,0.5092,4394.4,4394.3,0.7364]
[1757562047343,0.7207,4394.4,4394.3,0.7364]
[1757562048145,0.9482,4394.4,4394.3,0.7364]
[1757562048739,0.6427,4394.4,4394.3,0.7364]
[1757562049437,0.2275,4394.4,4394.3,0.7364]
[1757562050041,0.4312,4394.4,4394.3,0.7364]
[1757562057151,0.9662,4394.4,4394.1,0.294]
[1757562057452,0.9662,4394.4,4394.3,0.4893]
[1757562057453,0.6427,4394.4,4394.3,0.4893]
[1757562057749,0.2275,4394.4,4394.3,0.7019]
[1757562058352,0.4306,4394.4,4394.3,0.7019]
[1757562059651,0.9587,4394.4,4394.3,0.294]
[1757562060346,0.9587,4394.4,4394.3,0.4893]
[1757562062056,0.9587,4394.4,4394.1,0.294]
[1757562062350,0.9587,4394.4,4394.0,0.1239]
[1757562062558,0.2275,4394.4,4394.3,0.7019]
[1757562063055,0.4306,4394.4,4394.3,0.7019]
[1757562063757,0.9587,4394.4,4394.3,0.7019]
[1757562064756,0.9587,4394.4,4394.3,0.294]
[1757562064960,0.9587,4394.4,4394.1,0.294]
[1757562065261,0.9587,4394.4,4394.0,0.1239]
[1757562065758,0.9587,4394.4,4394.1,0.294]
[1757562065953,0.9587,4394.4,4394.0,0.1239]
[1757562066353,0.3235,4394.3,4394.0,0.1239]
[1757562066553,0.7312,4394.3,4394.2,0.4893]
[1757562067762,0.7312,4394.3,4393.6,0.294]
[1757562067961,0.4077,4394.2,4394.1,0.1953]
[1757562068163,0.7312,4394.2,4394.1,0.4893]